Organisation Name,Organisation Code,Organisational Unit,Service Category Label,Procurement Category,Supplier Name,Supplier Other ID,Payment Date,Transaction Number,Amount (�),Purpose
Eden District Council,http://opendatacommunities.org/id/district-council/eden,Information Technology Manager,Repairs & Renewals Fund,Equipment � purchase,PROBRAND LIMITED,PRO008,09/08/19,174025,9000,V330 15IN 15-8250U 4+4
Eden District Council,http://opendatacommunities.org/id/district-council/eden,Technical Services Manager,Provision of Ameneties,Street name plates,DYNAMIC JOINERY LTD,DYN004,09/08/19,174026,945,INSTALL STREET SIGNS
Eden District Council,http://opendatacommunities.org/id/district-council/eden,Human Resources Manager,Central Expenses,Advertising,CUMBRIAN NEWSPAPERS LTD,CUM024,09/08/19,174050,1438,ADVERTS
Eden District Council,http://opendatacommunities.org/id/district-council/eden,Information Technology Manager,Repairs & Renewals Fund,Equipment � purchase,PROBRAND LIMITED,PRO008,09/08/19,174052,8741.1,MICROSOFT PRO 6
Eden District Council,http://opendatacommunities.org/id/district-council/eden,Financial Services Manager,Corporate Costs,Professional fees,PROACTIS LTD,PRO017,09/08/19,174059,2200,SUBSCRIPTION PRO CONTRACT 19/20
Eden District Council,http://opendatacommunities.org/id/district-council/eden,Information Technology Manager,Information Technology,GIS Platform,ASTUN TECHNOLOGY LIMITED,AST004,09/08/19,174121,4250,CONSULATNCY -ASTUN/MERITEC INTERGRATION
Eden District Council,http://opendatacommunities.org/id/district-council/eden,Chief Executive's,Chief Executive,Professional fees,IGNITE CONSULTING LTD,IGN001,09/08/19,173954,16266.9,JUNE FEES/EXPENSES
Eden District Council,http://opendatacommunities.org/id/district-council/eden,Technical Services Manager,Land Charges,Professional fees,CUMBRIA COUNTY COUNCIL,CCC002,09/08/19,173326,1312,APRIL 19 SEARCHES
Eden District Council,http://opendatacommunities.org/id/district-council/eden,Commercial Services Manager,Economic Development and Promotion,Other contributions,HISTORIC ENGLAND,HIS002,09/08/19,173781,5069,ST LAWRENCES CHURCH RAILING
Eden District Council,http://opendatacommunities.org/id/district-council/eden,Legal Services Manager,Member Development & Training,Ext comp training,CIVICA UK LTD,CIV002,09/08/19,173834,650,TRAINING 09.07.19
Eden District Council,http://opendatacommunities.org/id/district-council/eden,Planning Policy Manager,Local Plans & Policy,Professional fees,RHYTHM  AV LTD,RHY001,09/08/19,174011,905,EQUIPMENT AND SERVICES FOR SELF BUILD
Eden District Council,http://opendatacommunities.org/id/district-council/eden,Legal Services Manager,Community Safety & Legal Services,Grants and contributions,CARLISLE & EDEN CITIZENS ADVICE BUREAU,EDE018,09/08/19,174013,20050,ANNUAL GRANT FUNDING 19/2020
Eden District Council,http://opendatacommunities.org/id/district-council/eden,Legal Services Manager,Legal Services,Professional fees,KINGS CHAMBERS,KIN015,09/08/19,174023,4750,CROSS CROFT APPLEBY (FOOTPATH)
Eden District Council,http://opendatacommunities.org/id/district-council/eden,Planning Policy Manager,Local Plans & Policy,Professional fees,ECOMOTIVE LTD,ECO004,09/08/19,174028,1000,PRESENTATION SELF BUILD
Eden District Council,http://opendatacommunities.org/id/district-council/eden,Technical Services Manager,Public Conveniences,Devolution Grant,SHAP PARISH COUNCIL,SHA008,09/08/19,174054,8655,1ST YEAR DEVOLUTION GRANT
Eden District Council,http://opendatacommunities.org/id/district-council/eden,Financial Services Manager,Arts and Leisure,Balance Sheet entry BS,GREENWICH LEISURE LTD,NCL001,09/08/19,174055,8687.85,VALUATION NO:3
Eden District Council,http://opendatacommunities.org/id/district-council/eden,Technical Services Manager,Closed Church Yards,GM INSPECTIONS & MAINTENANCE,AMEY PLC,TFE001,09/08/19,174060,34280.16,M-GM88
Eden District Council,http://opendatacommunities.org/id/district-council/eden,Transformation & Customers Head of,Corporate Services,Agency Staff,PAYSTREAM MY MAX LTD,PAY005,09/08/19,174064,1500,SERVICES PROVIDED
Eden District Council,http://opendatacommunities.org/id/district-council/eden,Technical Services Manager,Public Conveniences,Building Maintenance,AMEY PLC,TFE001,16/08/19,173695,790.58,APPLEBY PCS UNBLOCK DRAINS
Eden District Council,http://opendatacommunities.org/id/district-council/eden,Information Technology Manager,Repairs & Renewals Fund,Equipment � purchase,PROBRAND LIMITED,PRO008,16/08/19,173952,11869.32,TABLET/TYPE COVER/PRO DOCK
Eden District Council,http://opendatacommunities.org/id/district-council/eden,Information Technology Manager,Repairs & Renewals Fund,Equipment � purchase,PROBRAND LIMITED,PRO008,16/08/19,173953,576,SURFACE PRO LAPTOP POWER SUPPLY
Eden District Council,http://opendatacommunities.org/id/district-council/eden,Technical Services Manager,Parks and Open Spaces,Grounds Maintenance Contract Bed Plants,COLOUR GRO LTD,COL032,16/08/19,174014,2161.32,BEDDING PLANTS
Eden District Council,http://opendatacommunities.org/id/district-council/eden,Technical Services Manager,Administrative Buildings,Planned Maintenance,AMEY PLC,TFE001,16/08/19,174037,2734.44,CLEANING OFFICE
Eden District Council,http://opendatacommunities.org/id/district-council/eden,Commercial Services Manager,Community Development & Engagement,Printing and stationary,HEATONS OFFICE SOLUTIONS LTD,LAK004,16/08/19,174127,3026.14,"STATIONERY, FURNITURE, PAPER"
Eden District Council,http://opendatacommunities.org/id/district-council/eden,Transformation & Customers Head of,Corporate Services,Agency Staff,INTRO PR . SOCIAL MEDIA . CONTENT,INT014,16/08/19,174136,1150,pr appleby fair
Eden District Council,http://opendatacommunities.org/id/district-council/eden,Transformation & Customers Head of,Corporate Services,Agency Staff,INTRO PR . SOCIAL MEDIA . CONTENT,INT014,16/08/19,174137,3500,pr for appleby fair
Eden District Council,http://opendatacommunities.org/id/district-council/eden,Planning Policy Manager,Local Plans & Policy,Professional fees,INTRO PR . SOCIAL MEDIA . CONTENT,INT014,16/08/19,174248,3150,pr self build
Eden District Council,http://opendatacommunities.org/id/district-council/eden,Planning Policy Manager,Local Plans & Policy,Professional fees,INTRO PR . SOCIAL MEDIA . CONTENT,INT014,16/08/19,174249,600,pr eden self build
Eden District Council,http://opendatacommunities.org/id/district-council/eden,Information Technology Manager,Information Technology,IT Contracts & Maintenance,MLL TELECOM LTD,MLL001,16/08/19,173648,3705.75,SERVICE INVOICE
Eden District Council,http://opendatacommunities.org/id/district-council/eden,Legal Services Manager,Licensing,Software � maintenance,IDOX SOFTWARE LIMITED,IDO003,16/08/19,173651,9698.96,LALPAC ANNUAL CHARGES 19/20
Eden District Council,http://opendatacommunities.org/id/district-council/eden,Technical Services Manager,Administrative Buildings,Electricity,NPOWER LTD,NPO001,16/08/19,173833,709.06,CPACITY MECHANISM FORECAST NOV TO FEB
Eden District Council,http://opendatacommunities.org/id/district-council/eden,Revenue/Benefits Manager,Revenue & Benefits,Postages,ROYAL MAIL NW,ROY001,16/08/19,173922,1335.64,POST CHARGES 26.06.19-16.07.19
Eden District Council,http://opendatacommunities.org/id/district-council/eden,Information Technology Manager,Information Technology,Printers Contract,XEROX FINANCE,XER003,16/08/19,173934,975,RENT FOR AUG/NOV 19
Eden District Council,http://opendatacommunities.org/id/district-council/eden,Revenue/Benefits Manager,Revenue & Benefits,Unique payments ****,REDACTED INFORMATION,LOG003,16/08/19,173941,2441.21,REFUND OVERPAYMENT COUNCIL TAX
Eden District Council,http://opendatacommunities.org/id/district-council/eden,Revenue/Benefits Manager,Revenue & Benefits,Unique payments ****,REDACTED INFORMATION,NOB008,16/08/19,174027,628.68,REFUND COUNCIL TAX
Eden District Council,http://opendatacommunities.org/id/district-council/eden,Technical Services Manager,Vehicle Parking Off Street,Cash collection,CARLISLE CITY COUNCIL,CAR015,16/08/19,174053,3796,EDC STREET CASH FIRST QUARTER
Eden District Council,http://opendatacommunities.org/id/district-council/eden,Revenue/Benefits Manager,Revenue & Benefits,Unique payments ****,REDACTED INFORMATION,BEL028,16/08/19,174057,640.77,COUNCIL TAX REFUND
Eden District Council,http://opendatacommunities.org/id/district-council/eden,Technical Services Manager,Cemeteries,Commercial Refuse collection,AMEY PLC,TFE001,16/08/19,174098,633.36,PENRITH CEM SERVICE CHARGES JUL - SEPT19
Eden District Council,http://opendatacommunities.org/id/district-council/eden,Technical Services Manager,Administrative Buildings,Commercial Refuse collection,AMEY PLC,TFE001,16/08/19,174099,566.54,TH SERVICE CHARGES JUL - SEPT19
Eden District Council,http://opendatacommunities.org/id/district-council/eden,Environmental Services,1996 Mandatory Renovation Grants,Capital grants,IMPACT HOUSING ASSOCIATION,IMP001,16/08/19,174108,825.75,at home in eden service aug2019
Eden District Council,http://opendatacommunities.org/id/district-council/eden,Environmental Services,1996 Mandatory Renovation Grants,Capital grants,DOLPHIN MOBILITY YORKSHIRE & CUMBRIA LTD,DOL001,16/08/19,174111,1895,INTERIM PAYMENT
Eden District Council,http://opendatacommunities.org/id/district-council/eden,Environmental Services,1996 Mandatory Renovation Grants,Capital grants,PPM LTD,PPM001,16/08/19,174112,5045.87,FINAL PAYMENT - GRANT REF 180072
Eden District Council,http://opendatacommunities.org/id/district-council/eden,Planning Services,Environmental Enhancement & Conservation,Professional fees,CAPITA PROPERTY & INFRASTRUCTURE LTD,CAP002,16/08/19,174113,2405,ARBORCULTURAL SERVICES JUL 19
Eden District Council,http://opendatacommunities.org/id/district-council/eden,Information Technology Manager,Information Technology,IT Contracts & Maintenance,BTS HOLDINGS PLC,BTS001,16/08/19,174114,802,SERVICE AGREEMENT BTS COMMSWARE LOG
Eden District Council,http://opendatacommunities.org/id/district-council/eden,Revenue/Benefits Manager,Revenue & Benefits,Software � maintenance,CIVICA UK LTD,CIV002,16/08/19,174115,654.8,PARIS CONTACTLESS 10.09.19 TO 09.09.20
Eden District Council,http://opendatacommunities.org/id/district-council/eden,Revenue/Benefits Manager,Revenue & Benefits,Software � maintenance,CIVICA UK LTD,CIV002,16/08/19,174116,1940.16,PARIS TRANSACTION CHARGES 3D SECURE SERVICE 9.9.19-8.9.20
Eden District Council,http://opendatacommunities.org/id/district-council/eden,Revenue/Benefits Manager,Revenue & Benefits,Software � maintenance,CIVICA UK LTD,CIV002,16/08/19,174117,961.82,NPS PARIS BUREAU 9.9.19-8.9.20
Eden District Council,http://opendatacommunities.org/id/district-council/eden,Revenue/Benefits Manager,Revenue & Benefits,Software � maintenance,CIVICA UK LTD,CIV002,16/08/19,174118,4288.87,PARIS CORE SYSTEM SUPPORT 10.9.19-9.9.20
Eden District Council,http://opendatacommunities.org/id/district-council/eden,Legal Services Manager,Member Development & Training,Training,MyTownPlanningConsultancy,MYT001,16/08/19,174129,812.7,TRAINING AT LEP MEMBER OF PLANNING COMM
Eden District Council,http://opendatacommunities.org/id/district-council/eden,Human Resources Manager,Central Expenses,Welfare,OH ACQUISITIONS LIMITED,OHA001,16/08/19,174138,512.5,FIT FOR WORK ASSESSMENT
Eden District Council,http://opendatacommunities.org/id/district-council/eden,Legal Services Manager,Land Management,Land Management Contract,WALTON GOODLAND LTD,WAL008,16/08/19,174143,2891,RATE FOR SURVEYOR
Eden District Council,http://opendatacommunities.org/id/district-council/eden,Transformation & Customers Head of,Corporate Services,Agency Staff,PAYSTREAM MY MAX LTD,PAY005,16/08/19,174145,1500,to04.08.19 cs
Eden District Council,http://opendatacommunities.org/id/district-council/eden,Transformation & Customers Head of,Central Expenses,Postages,NEOPOST LIMITED,NEO002,16/08/19,174152,849.2,CARTRIDGES/ LABELS
Eden District Council,http://opendatacommunities.org/id/district-council/eden,Commercial Services Manager,Community Development & Engagement,Community Fund,NENTHEAD COMMUNITY SHOP,NEN009,16/08/19,174166,545.41,EDEN COMMUNITY FUND
Eden District Council,http://opendatacommunities.org/id/district-council/eden,Commercial Services Manager,Repairs & Renewals Fund,Building works,HOWE PROJECTS LTD,HOW014,16/08/19,174199,21817.69,APPLEBY SWIMMING POOL REFURB
Eden District Council,http://opendatacommunities.org/id/district-council/eden,Technical Services Manager,Public Conveniences,Other charges for services,BARTON PARISH COUNCIL,BAR001,16/08/19,174220,1000,POOLEY BRIDGE PCS ANNUAL ALLOWANCE
Eden District Council,http://opendatacommunities.org/id/district-council/eden,Revenue/Benefits Manager,Revenue & Benefits,Postages,ROYAL MAIL NW,ROY001,16/08/19,174232,1365.31,1ST AND 2ND CLASS MAIL ACCOUNT
Eden District Council,http://opendatacommunities.org/id/district-council/eden,Commercial Services Manager,1996 Mandatory Renovation Grants,Capital grants,HOMES ENGLAND,HOM004,16/08/19,174161,91155,final plot disposal eden business park
Eden District Council,http://opendatacommunities.org/id/district-council/eden,Transformation & Customers Head of,Central Expenses,Postages,NEOPOST,NEO004,13/08/19,174275,995,Franking Top UP
Eden District Council,http://opendatacommunities.org/id/district-council/eden,Transformation & Customers Head of,Central Expenses,Postages,NEOPOST,NEO004,13/08/19,174276,995,Franking Top UP
Eden District Council,http://opendatacommunities.org/id/district-council/eden,Human Resources Manager,Central Expenses,Advertising,SOLACE IN BUSINESS,SOL002,23/08/19,174314,4125,INV3 -30% AGREED FEE -DIR PEOPLE/PLACE
Eden District Council,http://opendatacommunities.org/id/district-council/eden,Legal Services Manager,Industrial Estates,Building Maintenance,M C HEATING SERVICES,MCH004,23/08/19,174324,1975,supply/fit boiler station yard alston
Eden District Council,http://opendatacommunities.org/id/district-council/eden,Technical Services Manager,Recycling,Supplies general,CUMBRIA WASTE RECYCLING LTD,CUM022,23/08/19,174329,525.84,WHEELIE BINS
Eden District Council,http://opendatacommunities.org/id/district-council/eden,Planning Policy Manager,Local Plans & Policy,Professional fees,MR A D LLOYD CONSULTING,LLO011,23/08/19,174164,1416.13,EVENT SUPPORT/DISBURSEMENTS
Eden District Council,http://opendatacommunities.org/id/district-council/eden,Chief Executive's,Chief Executive,Professional fees,IGNITE CONSULTING LTD,IGN001,23/08/19,174197,11089.15,JULY FIXED EDEN NOM DEVELOPMENT
Eden District Council,http://opendatacommunities.org/id/district-council/eden,Chief Executive's,Chief Executive,Professional fees,RESOURCES CONSULTANCY LTD,RES007,23/08/19,174213,4811.39,REVIEW OF MTFP -ACCOM AND TRAVEL
Eden District Council,http://opendatacommunities.org/id/district-council/eden,Technical Services Manager,Footway Lighting,FL External Contractors,ELECTRICITY NORTH WEST LTD,ELE005,23/08/19,174319,624,"LAMP DISC BURBANK HOUSE, BLENCOW"
Eden District Council,http://opendatacommunities.org/id/district-council/eden,Technical Services Manager,Footway Lighting,FL External Contractors,ELECTRICITY NORTH WEST LTD,ELE005,23/08/19,174320,624,LAMP DISC WHITE HOUSE LONG MARTON
Eden District Council,http://opendatacommunities.org/id/district-council/eden,Environmental Services,Other Environmental Health,Professional fees,UNITED UTILITIES WATER PLC,UNI024,23/08/19,173413,3350.95,WT/FS ANALYSIS MAY 19
Eden District Council,http://opendatacommunities.org/id/district-council/eden,Legal Services Manager,Elections,Miscellaneous,PRINT IMAGE NETWORK LTD,PRI011,23/08/19,173821,7757.85,EDEN FLEXI VOTE 14 POSTAL
Eden District Council,http://opendatacommunities.org/id/district-council/eden,Environmental Services,Pest Control,Pest Control,RENTOKIL INITIAL PEST CONTROL,REN009,23/08/19,173823,910.03,PEST MISC MANSION HOUSE
Eden District Council,http://opendatacommunities.org/id/district-council/eden,Environmental Services,Homelessness,Professional fees,EDEN HOUSING ASSOCIATION LTD,EDE001,23/08/19,173951,6000,LAW CENTRE SERVICE HOUSING OPTIONS TEAM
Eden District Council,http://opendatacommunities.org/id/district-council/eden,Environmental Services,Other Environmental Health,Professional fees,UNITED UTILITIES WATER PLC,UNI024,23/08/19,173959,1478.71,WT/FS ANALYSIS
Eden District Council,http://opendatacommunities.org/id/district-council/eden,Environmental Services,Community Wardens,Operational leases (Leased car scheme),VOLKSWAGEN GROUP LEASING,VOL003,23/08/19,174021,2532.1,RENTAL  PY16CVD
Eden District Council,http://opendatacommunities.org/id/district-council/eden,Environmental Services,Community Wardens,Operational leases (Leased car scheme),VOLKSWAGEN GROUP LEASING,VOL003,23/08/19,174022,2532.1,RENTAL PY16BWK
Eden District Council,http://opendatacommunities.org/id/district-council/eden,Information Technology Manager,Information Technology,IT Contracts & Maintenance,IT PROFESSIONAL SERVICES LTD,ITP001,23/08/19,174061,2875,AGREEMENT 004-DATA CIRCUIT-EDENDC
Eden District Council,http://opendatacommunities.org/id/district-council/eden,Legal Services Manager,Legal Services,Agency Staff,VENN GROUP LIMITED,VEN003,23/08/19,174102,1676.92,time sheet w/e 07.07.19 locum solicitor
Eden District Council,http://opendatacommunities.org/id/district-council/eden,Legal Services Manager,Legal Services,Agency Staff,VENN GROUP LIMITED,VEN003,23/08/19,174103,2096.15,timesheet w/e 16.06.19 locum solicitor
Eden District Council,http://opendatacommunities.org/id/district-council/eden,Legal Services Manager,Legal Services,Agency Staff,VENN GROUP LIMITED,VEN003,23/08/19,174104,2096.15,timesheet w/e 14.07.19 locum solicitor
Eden District Council,http://opendatacommunities.org/id/district-council/eden,Legal Services Manager,Legal Services,Agency Staff,VENN GROUP LIMITED,VEN003,23/08/19,174105,2096.15,timesheet w/e 21.07.19 locum solicitor
Eden District Council,http://opendatacommunities.org/id/district-council/eden,Legal Services Manager,Legal Services,Agency Staff,VENN GROUP LIMITED,VEN003,23/08/19,174106,2096.15,timesheet w/e 30.06.19 locum solicitor
Eden District Council,http://opendatacommunities.org/id/district-council/eden,Legal Services Manager,Legal Services,Agency Staff,VENN GROUP LIMITED,VEN003,23/08/19,174107,2096.15,timesheet w/e 23.06.19 locum solicitor
Eden District Council,http://opendatacommunities.org/id/district-council/eden,Technical Services Manager,Administrative Buildings,Maint of Water Coolers,ANGEL SPRINGS LTD,ANG007,23/08/19,174120,721.02,RENTAL FEES
Eden District Council,http://opendatacommunities.org/id/district-council/eden,Transformation & Customers Head of,Corporate Services,Agency Staff,PAYSTREAM MY MAX LTD,PAY005,23/08/19,174163,1500,SERVICES PROVIDED
Eden District Council,http://opendatacommunities.org/id/district-council/eden,Technical Services Manager,Footway Lighting,Electricity,NPOWER LTD,NPO001,23/08/19,174207,4895.81,EDC STREET LIGHTING
Eden District Council,http://opendatacommunities.org/id/district-council/eden,Technical Services Manager,Land Charges,Professional fees,CUMBRIA COUNTY COUNCIL,CCC002,23/08/19,174216,1123,EDEN SEARCHES JUNE 19
Eden District Council,http://opendatacommunities.org/id/district-council/eden,Technical Services Manager,Land Charges,Professional fees,CUMBRIA COUNTY COUNCIL,CCC002,23/08/19,174217,1488,EDEN SEARCHES MAY 19
Eden District Council,http://opendatacommunities.org/id/district-council/eden,Environmental Services,Community Wardens,Dog Contract O.O.H retainer,AMEY PLC,TFE001,23/08/19,174225,938.83,STRAY DOG 01.07.19TO 31.07.19
Eden District Council,http://opendatacommunities.org/id/district-council/eden,Technical Services Manager,Parks and Open Spaces,Ground Maintenance SOR & Dayworks,DINSDALE CONTRACTS LTD,DIN005,23/08/19,174227,1632,resurfacing castle park area 2
Eden District Council,http://opendatacommunities.org/id/district-council/eden,Technical Services Manager,Parks and Open Spaces,Ground Maintenance SOR & Dayworks,DINSDALE CONTRACTS LTD,DIN005,23/08/19,174228,2112,resurfacing castle park area 4
Eden District Council,http://opendatacommunities.org/id/district-council/eden,Environmental Services,Appleby Fair,Street Cleaning Contract,AMEY PLC,TFE001,23/08/19,174311,18472.7,STREET CLEANSING AUG 19
Eden District Council,http://opendatacommunities.org/id/district-council/eden,Technical Services Manager,Refuse Collection,Contract refuse collection,AMEY PLC,TFE001,23/08/19,174312,72605.89,REFUSE AUG19
Eden District Council,http://opendatacommunities.org/id/district-council/eden,Technical Services Manager,Recycling,Em Wks Storage,AMEY PLC,TFE001,23/08/19,174315,532.55,MISC &EMERGENCY WORKSTORE AUG 19
Eden District Council,http://opendatacommunities.org/id/district-council/eden,Technical Services Manager,Recycling,Recycling - Garden Waste,CUMBRIA WASTE RECYCLING LTD,CUM022,23/08/19,174321,24182.37,GARDEN WASTE CONTRACT
Eden District Council,http://opendatacommunities.org/id/district-council/eden,Technical Services Manager,Recycling,Recycling - Bag & Box,CUMBRIA WASTE RECYCLING LTD,CUM022,23/08/19,174322,21759.98,GREEN BOX CONTRACT
Eden District Council,http://opendatacommunities.org/id/district-council/eden,Technical Services Manager,Recycling,Garden Waste Skips,CUMBRIA WASTE RECYCLING LTD,CUM022,23/08/19,174328,3269,SKIPS JULY 19
Eden District Council,http://opendatacommunities.org/id/district-council/eden,Financial Services Manager,Creditors Control Account,Miscellaneous,AMEY PLC,TFE001,23/08/19,174332,18267.02,STREET CLEANSING JUN19
Eden District Council,http://opendatacommunities.org/id/district-council/eden,Environmental Services,Appleby Fair,Street Cleaning Contract,AMEY PLC,TFE001,23/08/19,174333,18472.7,STREET CLEANSING JULY 19
Eden District Council,http://opendatacommunities.org/id/district-council/eden,Technical Services Manager,Administrative Buildings,Electricity,NPOWER LTD,NPO001,23/08/19,174356,1380.16,TOWN HALL
Eden District Council,http://opendatacommunities.org/id/district-council/eden,Technical Services Manager,Administrative Buildings,Electricity,NPOWER LTD,NPO001,23/08/19,174357,749.38,MANSION HOUSE
Eden District Council,http://opendatacommunities.org/id/district-council/eden,Technical Services Manager,Recycling,Recycling  - Bring Sites,CUMBRIA WASTE RECYCLING LTD,CUM022,23/08/19,174362,7612.72,BRING SITE JUNE 19
Eden District Council,http://opendatacommunities.org/id/district-council/eden,Information Technology Manager,Information Technology,Mobile telephone,VODAFONE BUSINESS SOLUTIONS,VOD002,21/08/19,174461,1519.58,MOBILES
Eden District Council,http://opendatacommunities.org/id/district-council/eden,Technical Services Manager,Eden Leisure Centre & Appleby Swimming P,Equipment � purchase,GRAFIX SIGNMAKERS LTD,GRA005,30/08/19,174453,632,LETTER U REPLACEMENT
Eden District Council,http://opendatacommunities.org/id/district-council/eden,Commercial Services Manager,Economic Development and Promotion,Professional fees,CUMBRIA COUNTY COUNCIL,CCC002,30/08/19,174469,3000,CUMBRIA EMPLOYMENT SITES & PREMISES STUD
Eden District Council,http://opendatacommunities.org/id/district-council/eden,Planning Policy Manager,Local Plans & Policy,Professional fees,ADAMEDIA LTD,ADA004,30/08/19,174370,2502.5,LIVE EVENT FILMING
Eden District Council,http://opendatacommunities.org/id/district-council/eden,Financial Services Manager,Corporate Costs,Additional Pensions,CUMBRIA COUNTY COUNCIL LGPS,CUM095,30/08/19,174223,111200,YEAR 3 OF 3 ADDITIONAL PENSIONS
Eden District Council,http://opendatacommunities.org/id/district-council/eden,Transformation & Customers Head of,Corporate Services,Agency Staff,PAYSTREAM MY MAX LTD,PAY005,30/08/19,174241,1500,SERVICES PROVIDED W/E 11.08.19
Eden District Council,http://opendatacommunities.org/id/district-council/eden,Human Resources Manager,Central Expenses,Welfare,ROSALIND NIEDT COUNSELLOR,NIE002,30/08/19,174243,500,10 SESSIONS COUNSELLING
Eden District Council,http://opendatacommunities.org/id/district-council/eden,Human Resources Manager,Central Expenses,Welfare,ROSALIND NIEDT COUNSELLOR,NIE002,30/08/19,174244,500,10 SESSIONS COUNSELLING
Eden District Council,http://opendatacommunities.org/id/district-council/eden,Human Resources Manager,Central Expenses,Welfare,ROSALIND NIEDT COUNSELLOR,NIE002,30/08/19,174245,500,10 SESSIONS COUNSELLING
Eden District Council,http://opendatacommunities.org/id/district-council/eden,Transformation & Customers Head of,Corporate Services,Agency Staff,PAYSTREAM MY MAX LTD,PAY005,30/08/19,174304,1500,SERVICES PROVIDED W/E 18.08.19
Eden District Council,http://opendatacommunities.org/id/district-council/eden,Dir of People & Place,Director of People & Place,Agency Staff,GATENBYSANDERSON LTD,GAT010,30/08/19,174323,14400,services provided -people/place jul19
Eden District Council,http://opendatacommunities.org/id/district-council/eden,Commercial Services Manager,Tourism Promotion,Marketing,CUMBRIA TOURISM,CUM066,30/08/19,174331,850,HOLIDAY GUIDE 2020 ADVERT
Eden District Council,http://opendatacommunities.org/id/district-council/eden,Human Resources Manager,Central Expenses,Relocation expenses,REDACTED INFORMATION,WYE001,30/08/19,174354,500,RELOCATION CLAIM AUG19
Eden District Council,http://opendatacommunities.org/id/district-council/eden,Technical Services Manager,Parks and Open Spaces,Ground Maintenance SOR & Dayworks,DINSDALE CONTRACTS LTD,DIN005,30/08/19,174360,1680,SURFACING CASTLE PARK AREA 3
Eden District Council,http://opendatacommunities.org/id/district-council/eden,Transformation & Customers Head of,Corporate Services,Salaries,CUMBRIA COUNTY COUNCIL LGPS,CUM095,30/08/19,174365,8883.8,COST REDUNDANCY STAFF MEMBER
Eden District Council,http://opendatacommunities.org/id/district-council/eden,Technical Services Manager,Recycling,Recycling  - Bring Sites,CUMBRIA WASTE RECYCLING LTD,CUM022,30/08/19,174372,7612.72,BRING SITE JULY 19
Eden District Council,http://opendatacommunities.org/id/district-council/eden,Commercial Services Manager,Community Development & Engagement,Tour of Britain,CUMBRIA COUNTY COUNCIL,CCC002,30/08/19,174373,5000,TOUR OF BRITAIN SPONSORSHIP
Eden District Council,http://opendatacommunities.org/id/district-council/eden,Technical Services Manager,Recycling,material price fluctuations,CUMBRIA WASTE RECYCLING LTD,CUM022,30/08/19,174375,5676.57,BRING SITE FLUCTUATION
Eden District Council,http://opendatacommunities.org/id/district-council/eden,Planning Services Manager (BC),Building Regulations,Subscriptions & levies,CARLISLE CITY COUNCIL,CAR015,30/08/19,174437,2678.33,IHS SUBSCRPTION CUMBRIA BUILDING CONTROL
Eden District Council,http://opendatacommunities.org/id/district-council/eden,Technical Services Manager,Recycling,material price fluctuations,CUMBRIA WASTE RECYCLING LTD,CUM022,30/08/19,174438,5453.21,BS-F-60-19/20
Eden District Council,http://opendatacommunities.org/id/district-council/eden,Technical Services Manager,Recycling,material price fluctuations,CUMBRIA WASTE RECYCLING LTD,CUM022,30/08/19,174442,4544.9,F-04-19/20
Eden District Council,http://opendatacommunities.org/id/district-council/eden,Environmental Services,Appleby Fair,Ref Col Adhoc Works,AMEY PLC,TFE001,30/08/19,174450,4540.56,SC72
Eden District Council,http://opendatacommunities.org/id/district-council/eden,Transformation & Customers Head of,Central Expenses,Postages,ROYAL MAIL NW,ROY001,30/08/19,174466,1908.44,RESPONSE PLUS
Eden District Council,http://opendatacommunities.org/id/district-council/eden,Technical Services Manager,Refuse Collection,Refuse Contract Dayworks,AMEY PLC,TFE001,30/08/19,174467,1672.01,RC83
Eden District Council,http://opendatacommunities.org/id/district-council/eden,Technical Services Manager,Refuse Collection,Refuse Contract Dayworks,AMEY PLC,TFE001,30/08/19,174472,1678.16,REFUSE COLLECTION
Eden District Council,http://opendatacommunities.org/id/district-council/eden,Transformation & Customers Head of,Corporate Services,Agency Staff,PAYSTREAM MY MAX LTD,PAY005,30/08/19,174491,1500,SERVICES PROVIDED W/E 25.08.19
Eden District Council,http://opendatacommunities.org/id/district-council/eden,Planning Policy Manager,Local Plans & Policy,Child Care Voucher Scheme,BUSY BEES CHILDCARE VOUCHERS,BUS004,19/08/19,174609,909,CHILDCARE VOUCHERS 19/08/19 DDR
